fUSD/lending_fUSD_20260401
["ID","MTS","AMOUNT","RATE_DAILY","PERIOD"]
[419234736,1775026278353,-242.15909246,0.00042999,120]
[419234737,1775026278363,-500.0,0.00042999,120]
[419234738,1775026278374,-200.0,0.00042999,120]
[419234739,1775026278384,-500.0,0.00042999,120]
[419234740,1775026278393,-500.0,0.00042999,120]
[419234741,1775026278403,-151.0,0.00042999,120]
[419234742,1775026278413,-500.0,0.00042999,120]
[419234743,1775026278423,-151.0,0.00042999,120]
[419234744,1775026278434,-251.11897888,0.00042999,120]
[419234745,1775026278443,-200.0,0.00042999,120]
[419234746,1775026278453,-500.0,0.00042999,120]
[419234747,1775026278463,-500.0,0.00042999,120]
[419234748,1775026278472,-500.0,0.00042999,120]
[419234749,1775026278481,-151.0,0.00042999,120]
[419234750,1775026278491,-500.0,0.00042999,120]
[419234751,1775026278501,-151.0,0.00042999,120]
[419234752,1775026278510,-260.4103811,0.00042999,120]
[419234753,1775026278520,-200.0,0.00042999,120]
[419234754,1775026278529,-500.0,0.00042999,120]
[419234755,1775026278539,-500.0,0.00042999,120]
[419234756,1775026278549,-500.0,0.00042999,120]
[419234757,1775026278559,-151.0,0.00042999,120]
[419234758,1775026278569,-500.0,0.00042999,120]
[419234759,1775026278579,-151.0,0.00042999,120]
[419234760,1775026278588,-270.0455652,0.00042999,120]
[419234761,1775026278598,-500.0,0.00042999,120]
[419234762,1775026278608,-500.0,0.00042999,120]
[419234763,1775026278618,-151.0,0.00042999,120]
[419234764,1775026278629,-280.03725112,0.00042999,120]
[419234765,1775026278639,-200.0,0.00042999,120]
[419234766,1775026278648,-151.0,0.00042999,120]
[419234767,1775026278658,-500.0,0.00042999,120]
[419234768,1775026278667,-6888.0,0.00042999,120]
[419234769,1775026278677,-500.0,0.00042999,120]
[419234770,1775026278688,-500.0,0.00042999,120]
[419234771,1775026278697,-500.0,0.00042999,120]
[419234772,1775026278707,-151.0,0.00042999,120]
[419234773,1775026278716,-151.0,0.00042999,120]
[419234774,1775026278727,-200.0,0.00042999,120]
[419234775,1775026278738,-500.0,0.00042999,120]
[419234776,1775026278748,-290.39862941,0.00042999,120]
[419234777,1775026278758,-7142.856,0.00042999,120]
[419234778,1775026278768,-500.0,0.00042999,120]
[419234779,1775026278778,-500.0,0.00042999,120]
[419234780,1775026278788,-151.0,0.00042999,120]
[419234781,1775026278798,-500.0,0.00042999,120]
[419234782,1775026278807,-301.1433787,0.00042999,120]
[419234783,1775026278817,-7407.141672,0.00042999,120]
[419234784,1775026278826,-226.46120389,0.00042999,120]
[419234785,1775026278835,-500.0,0.00042999,120]
[419234786,1775026278844,-151.0,0.00042999,120]
[419234787,1775026278854,-500.0,0.00042999,120]
[419234788,1775026278863,-151.0,0.00042999,120]
[419234789,1775026278872,-500.0,0.00042999,120]
[419234790,1775026278882,-7681.20591386,0.00042999,120]
[419234791,1775026278892,-500.0,0.00042999,120]
[419234792,1775026278902,-151.0,0.00042999,120]
[419234793,1775026278912,-500.0,0.00042999,120]
[419234794,1775026278921,-151.0,0.00042999,120]
[419234795,1775026278931,-500.0,0.00042999,120]
[419234796,1775026278940,-500.0,0.00042999,120]
[419234797,1775026278950,-7965.41053268,0.00042999,120]
[419234798,1775026278960,-500.0,0.00042999,120]
[419234799,1775026278971,-151.0,0.00042999,120]
[419234800,1775026278980,-500.0,0.00042999,120]
[419234801,1775026278990,-500.0,0.00042999,120]
[419234802,1775026278999,-8260.13072239,0.00042999,120]
[419234803,1775026279009,-151.0,0.00042999,120]
[419234804,1775026279018,-500.0,0.00042999,120]
[419234805,1775026279028,-500.0,0.00042999,120]
[419234806,1775026279038,-500.0,0.00042999,120]
[419234807,1775026279047,-8565.75555911,0.00042999,120]
[419234808,1775026279056,-151.0,0.00042999,120]
[419234809,1775026279065,-500.0,0.00042999,120]
[419234810,1775026279074,-500.0,0.00042999,120]
[419234811,1775026279083,-500.0,0.00042999,120]
[419234812,1775026279093,-8882.6885148,0.00042999,120]
[419234813,1775026279102,-1037.0,0.00042999,30]
[419234814,1775026279111,-151.0,0.00042999,120]
[419234815,1775026279120,-500.0,0.00042999,120]
[419234816,1775026279129,-500.0,0.00042999,120]
[419234817,1775026279139,-500.0,0.00042999,120]
[419234818,1775026279150,-8499.98415436,0.00042999,120]
[419234819,1775026279161,-500.0,0.00042999,120]
[419234820,1775026279171,-151.0,0.00042999,120]
[419234821,1775026279180,-500.0,0.00042999,120]
[419234822,1775026279190,-500.0,0.00042999,120]
[419234823,1775026279199,-500.0,0.00042999,120]
[419234824,1775026279209,-500.0,0.00042999,120]
[419234825,1775026279219,-500.0,0.00042999,120]
[419234826,1775026279229,-500.0,0.00042999,120]
[419234827,1775026279239,-500.0,0.00042999,120]
[419234828,1775026279248,-500.0,0.00042999,120]
[419234829,1775026279258,-500.0,0.00042999,120]
[419234830,1775026279267,-500.0,0.00042999,120]
[419234831,1775026279278,-500.0,0.00042999,120]
[419234832,1775026279288,-500.0,0.00042999,120]
[419234833,1775026279298,-500.0,0.00042999,120]
[419234834,1775026279308,-500.0,0.00042999,120]
[419234835,1775026279319,-3000.0,0.00042999,120]
[419234836,1775026279328,-2486.0,0.00042999,120]
[419234837,1775026279338,-500.0,0.00042999,120]
[419234838,1775026279349,-500.0,0.00042999,120]
[419234839,1775026279359,-500.0,0.00042999,120]
[419234840,1775026279369,-500.0,0.00042999,120]
[419234841,1775026279379,-2000.0,0.00042999,120]
[419234842,1775026279389,-2486.0,0.00042999,120]
[419234843,1775026279399,-500.0,0.00042999,120]
[419234844,1775026279409,-2258.00809214,0.00042999,120]
[419234845,1775026279419,-500.0,0.00042999,120]
[419234846,1775026279429,-500.0,0.00042999,120]
[419234847,1775026279439,-500.0,0.00042999,120]
[419234848,1775026279449,-2043.95937522,0.00042999,120]
[419234849,1775026279458,-2486.0,0.00042999,120]
[419234850,1775026279468,-500.0,0.00042999,120]
[419234851,1775026279478,-518.5,0.00042999,120]
[419234852,1775026279488,-2486.0,0.00042999,120]
[419234853,1775026279498,-500.0,0.00042999,120]
[419234854,1775026279508,-537.6845,0.00042999,120]
[419234855,1775026279518,-2486.0,0.00042999,120]
[419234856,1775026279528,-500.0,0.00042999,120]
[419234857,1775026279539,-557.5788265,0.00042999,120]
[419234858,1775026279549,-1221.88697738,0.00042999,120]
[419234859,1775026279560,-500.0,0.00042999,120]
[419234860,1775026279570,-437.70802113,0.00042999,120]
[419234861,1775026279580,-500.0,0.00042999,120]
[419234862,1775026279590,-500.0,0.00042999,120]
[419234863,1775026279600,-151.0,0.00042999,120]
[419234864,1775026279740,-500.0,0.00042999,120]
[419234865,1775026279750,-500.0,0.00042999,120]
[419234866,1775026279759,-500.0,0.00042999,120]
[419234867,1775026279770,-620.0,0.00042999,120]
[419234868,1775026279780,-151.0,0.00042999,120]
[419234869,1775026279790,-500.0,0.00042999,120]
[419234870,1775026279800,-642.94,0.00042999,120]
[419234871,1775026279813,-151.0,0.00042999,120]
[419234872,1775026279823,-500.0,0.00042999,120]
[419234873,1775026279833,-666.72878,0.00042999,120]
[419234874,1775026279844,-218.40321003,0.00042999,120]
[419234875,1775026279854,-500.0,0.00042999,120]
[419234876,1775026279865,-500.0,0.00042999,120]
[419234877,1775026279875,-691.39774486,0.00042999,120]
[419234878,1775026279887,-151.0,0.00042999,120]
[419234879,1775026279896,-518.5,0.00042999,120]
[419234880,1775026279906,-500.0,0.00042999,120]
[419234881,1775026279915,-156.587,0.00042999,120]
[419234882,1775026279925,-537.6845,0.00042999,120]
[419234883,1775026279935,-716.97946142,0.00042999,120]
[419234884,1775026279944,-500.0,0.00042999,120]
[419234885,1775026279954,-162.380719,0.00042999,120]
[419234886,1775026279963,-557.5788265,0.00042999,120]
[419234887,1775026279973,-517.50878825,0.00042999,120]
[419234888,1775026279983,-500.0,0.00042999,120]
[419234889,1775026279993,-168.3888056,0.00042999,120]
[419234890,1775026280003,-578.20924308,0.00042999,120]
[419234891,1775026280013,-251.0,0.00042999,120]
[419234892,1775026280023,-174.61919141,0.00042999,120]
[419234893,1775026280033,-500.0,0.00042999,120]
[419234894,1775026280043,-599.60298507,0.00042999,120]
[419234895,1775026280053,-260.287,0.00042999,120]
[419234896,1775026280063,-181.08010149,0.00042999,120]
[419234897,1775026280073,-500.0,0.00042999,120]
[419234898,1775026280083,-1030.0,0.00042999,120]
[419234899,1775026280093,-269.917619,0.00042999,120]
[419234900,1775026280103,-238.66159918,0.00042999,120]
[419234901,1775026280113,-500.0,0.00042999,120]
[419234902,1775026280123,-1068.11,0.00042999,120]
[419234903,1775026280135,-500.0,0.00042999,120]
[419234904,1775026280146,-835.63649903,0.00042999,120]
[419234905,1775026280156,-250.0,0.00042999,120]
[419234906,1775026280167,-1107.63007,0.00042999,120]
[419234907,1775026280177,-500.0,0.00042999,120]
[419234908,1775026280188,-1148.61238259,0.00042999,120]
[419234909,1775026280198,-250.0,0.00042999,120]
[419234910,1775026280208,-500.0,0.00042999,120]
[419234911,1775026280221,-1191.11104075,0.00042999,120]
[419234912,1775026280231,-250.0,0.00042999,120]
[419234913,1775026280241,-500.0,0.00042999,120]
[419234914,1775026280252,-1235.18214925,0.00042999,120]
[419234915,1775026280262,-250.0,0.00042999,120]
[419234916,1775026280272,-200.0,0.00042999,120]
[419234917,1775026280283,-500.0,0.00042999,120]
[419234918,1775026280293,-250.0,0.00042999,120]
[419234919,1775026280307,-1280.88388878,0.00042999,120]
[419234920,1775026280317,-200.0,0.00042999,120]
[419234921,1775026280327,-151.0,0.00042999,120]
[419234922,1775026280337,-500.0,0.00042999,120]
[419234923,1775026280347,-742.19689228,0.00042999,120]
[419234924,1775026280356,-250.0,0.00042999,120]
[419234925,1775026280366,-386.47795876,0.00043,120]
[419234926,1775026280376,-1742504.75240855,0.00043,120]
[419234927,1775026282045,-151.0,0.0004291,120]
[419234928,1775026282056,-1349.09654181,0.00043,120]
[419234929,1775026282109,-500.0,0.00038356,2]
[419234930,1775026282119,-734.335478,0.00039726,30]
[419234931,1775026282129,-9593.265937,0.0004291,2]
[419234932,1775026282144,-200.0,0.00042999,120]
[419234933,1775026282155,-156.587,0.00042999,120]
[419234934,1775026282165,-500.0,0.00042999,120]
[419234935,1775026282175,-225252.13090349,0.00043,120]
[419234936,1775026282188,-324.15640965,0.00043,120]
[419234937,1775026282206,-468.586646,0.0004291,120]
[419234938,1775026282217,-5592.98855051,0.00043,120]
[419234939,1775026282230,-6087.10756133,0.00043,120]
[419234940,1775026282242,-500.0,0.00043,120]
[419234941,1775026282290,-420.86114321,0.00043,120]
[419234942,1775026282304,-425.63,0.00043,120]
[419234943,1775026282360,-922.18333418,0.00042699,2]
[419234944,1775026282743,-2000.0,0.00016001,2]
[419234945,1775026282755,-284.0905653,0.000327,2]
[419234946,1775026282766,-734.335478,0.0003511,7]
[419234947,1775026282776,-500.0,0.00038356,2]
[419234948,1775026282785,-53.77376669,0.00038356,2]
[419234949,1775026282797,-361.22623331,0.00038356,2]
[419234950,1775026282806,-105.96577677,0.00039726,120]
[419234951,1775026282819,-362.62086923,0.00039726,120]
[419234952,1775026282829,-218.980824,0.00039726,60]
[419234953,1775026282839,-468.586646,0.00039726,120]
[419234954,1775026282848,-218.980824,0.00039726,60]
[419234955,1775026282858,-417.89282888,0.00042116,2]
[419234956,1775026282868,-500.0,0.00042192,2]
[419234957,1775026282878,-500.0,0.00042192,2]
[419234958,1775026282889,-500.0,0.00042192,2]
[419234959,1775026282898,-500.0,0.00042192,2]
[419234960,1775026282908,-5093.81666582,0.00042699,2]
[419234961,1775026282918,-734.335478,0.00042866,30]
[419234962,1775026282927,-734.335478,0.0004291,30]
[419234963,1775026282937,-250.0,0.00042999,120]
[419234964,1775026282951,-200.0,0.00042999,120]
[419234965,1775026282962,-162.380719,0.00042999,120]
[419234966,1775026282972,-500.0,0.00042999,120]
[419234967,1775026282981,-250.0,0.00042999,120]
[419234968,1775026282991,-200.0,0.00042999,120]
[419234969,1775026283001,-96.67360897,0.00042999,120]
[419234970,1775026283034,-71.71519663,0.00042999,120]
[419234971,1775026283045,-490.13372255,0.00042999,120]
[419234972,1775026283068,-46.90468978,0.00042999,120]
[419234973,1775026283097,-500.0,0.00032877,2]
[419234974,1775026283108,-500.0,0.00042192,2]
[419234975,1775026283118,-64.41897122,0.00042999,120]
[419234976,1775026283132,-20.33091197,0.00042999,120]
[419234977,1775026283141,-434.4623591,0.00042999,120]
[419234978,1775026283158,-65.5376409,0.00042999,120]
[419234979,1775026283168,-250.0,0.00042999,120]
[419234980,1775026283178,-200.0,0.00042999,120]
[419234981,1775026283188,-174.61919141,0.00042999,120]
[419234982,1775026283198,-500.0,0.00042999,120]
[419234983,1775026283208,-139.44172823,0.00043,120]
[419234984,1775026283220,-7572.13946771,0.00043,120]
[419234985,1775026284166,-345.425,0.00015601,2]
[419234986,1775026284186,-697.67842085,0.00015601,2]
[419234987,1775026284278,-870.97349203,0.00015601,2]
[419234988,1775026284289,-2000.0,0.00015701,2]
[419234989,1775026284300,-986.73889327,0.00015801,2]
[419234990,1775026284371,-1013.26110673,0.00015801,2]
[419234991,1775026284380,-2000.0,0.00015901,2]
[419234992,1775026284390,-500.0,0.00032877,2]
[419234993,1775026284399,-500.0,0.00032877,2]
[419234994,1775026284408,-500.0,0.00032877,2]
[419234995,1775026284418,-153.0,0.00034394,30]
[419234996,1775026284427,-477.0,0.00035108,30]
[419234997,1775026284436,-1781.0,0.00035108,30]
[419234998,1775026284446,-1002.0,0.00038,7]
[419234999,1775026284456,-1000.0,0.00039,7]
[419235000,1775026284465,-734.335478,0.00039726,30]
[419235001,1775026284475,-151.0,0.00039726,120]
[419235002,1775026284487,-151.0,0.00039726,120]
[419235003,1775026284498,-151.0,0.00039726,120]
[419235004,1775026284507,-218.980824,0.00039726,60]
[419235005,1775026284516,-218.980824,0.00039726,60]
[419235006,1775026284525,-300.0,0.00042116,2]
[419235007,1775026284534,-300.0,0.00042116,2]
[419235008,1775026284544,-500.0,0.00042192,2]
[419235009,1775026284553,-500.0,0.00042466,2]
[419235010,1775026284562,-500.0,0.00042466,2]
[419235011,1775026284572,-415.0,0.00042466,2]
[419235012,1775026284581,-218.980824,0.00042866,60]
[419235013,1775026284590,-468.586646,0.00042866,120]
[419235014,1775026284600,-734.335478,0.00042866,30]
[419235015,1775026284609,-218.980824,0.00042866,60]
[419235016,1775026284618,-218.980824,0.0004291,60]
[419235017,1775026284627,-468.586646,0.0004291,120]
[419235018,1775026284637,-734.335478,0.0004291,30]
[419235019,1775026284647,-218.980824,0.0004291,60]
[419235020,1775026284657,-250.0,0.00042999,120]
[419235021,1775026284667,-200.0,0.00042999,120]
[419235022,1775026284677,-181.08010149,0.00042999,120]
[419235023,1775026284687,-500.0,0.00042999,120]
[419235024,1775026284699,-250.0,0.00042999,120]
[419235025,1775026284708,-197.56493291,0.00042999,120]
[419235026,1775026284717,-187.78006526,0.00042999,120]
[419235027,1775026284727,-500.0,0.00042999,120]
[419235028,1775026284736,-500.0,0.00042999,120]
[419235029,1775026284746,-250.0,0.00042999,120]
[419235030,1775026284757,-500.0,0.00042999,120]
[419235031,1775026284767,-250.0,0.00042999,120]
[419235032,1775026284777,-25334.14731092,0.00043,120]
[419235033,1775026285108,-541.07894082,0.00043,120]
[419235034,1775026285120,-255.14151817,0.00043,120]
[419235035,1775026286725,591.69,8.604e-05,2]
[419235036,1775026289484,4408.32,8.893e-05,2]
[419235037,1775026289511,5000.01,8.893e-05,2]
[419235038,1775026289537,5000.01,8.893e-05,2]
[419235039,1775026289564,8913.21,8.893e-05,2]
[419235040,1775026289590,10000.01,8.893e-05,2]
[419235041,1775026289616,10000.01,8.893e-05,2]
[419235042,1775026289648,10000.01,8.893e-05,2]
[419235043,1775026289674,10000.01,8.893e-05,2]
[419235044,1775026289701,10000.01,8.893e-05,2]
[419235045,1775026289727,10000.01,8.893e-05,2]
[419235046,1775026289755,10000.01,8.893e-05,2]
[419235047,1775026290314,10000.01,8.893e-05,2]
[419235048,1775026290358,10000.01,8.893e-05,2]
[419235049,1775026290383,10000.01,8.893e-05,2]
[419235050,1775026290407,10000.01,8.893e-05,2]
[419235051,1775026290431,10000.01,8.893e-05,2]
[419235052,1775026290464,913.83225617,8.893e-05,2]
[419235053,1775026293334,-975.24101372,8.893e-05,2]
[419235054,1775026319939,1200.0,8.287e-05,2]
[419235055,1775026320466,1000.0,8.51e-05,2]
[419235056,1775026320982,1400.0,8.728e-05,2]
[419235057,1775026341449,151.0,8.89e-05,2]
[419235058,1775026372259,1249.01,8.85e-05,2]
[419235059,1775026372284,5000.01,8.85e-05,2]
[419235060,1775026372309,5000.01,8.85e-05,2]
[419235062,1775026379676,-4841.697624,8.85e-05,2]
[419235063,1775026382779,-5000.01,8.85e-05,2]
[419235064,1775026382800,-5000.01,8.85e-05,2]
[419235065,1775026386448,1400.0,8.527e-05,2]
[419235066,1775026386968,1536.72,8.682e-05,2]
[419235067,1775026387491,1300.0,8.825e-05,2]
[419235068,1775026387516,-5000.01,8.85e-05,2]
[419235069,1775026387684,-5000.01,8.85e-05,2]
[419235070,1775026387999,1580.0,8.75e-05,2]
[419235071,1775026388310,-5000.01,8.85e-05,2]
[419235072,1775026388422,-5000.01,8.85e-05,2]
[419235073,1775026391146,-39629.0,8.85e-05,2]
[419235074,1775026391650,-5000.01,8.85e-05,2]
[419235075,1775026391731,-5000.01,8.85e-05,2]
[419235076,1775026397537,-5000.01,8.85e-05,2]
[419235077,1775026397667,-5000.01,8.85e-05,2]
[419235078,1775026471432,800.0,8.606e-05,2]
[419235079,1775026548863,3383.29,8.219e-05,2]
[419235080,1775026548884,3028.67,8.219e-05,2]
[419235081,1775026570138,150.0,8.8e-05,2]
[419235083,1775026623179,546.0,8.83e-05,2]
[419235084,1775026632820,6275.34,8.168e-05,2]
[419235085,1775026632842,10000.01,8.168e-05,2]
[419235086,1775026632866,1956.75,8.168e-05,2]
[419235087,1775026641608,150.0,8.8e-05,2]
[419235088,1775026658832,390.65,8.597e-05,2]
[419235089,1775026659094,970.0,8.711e-05,2]
[419235091,1775026702734,6532.61,8.094e-05,2]
[419235092,1775026702756,10000.01,8.094e-05,2]
[419235093,1775026702780,10000.01,8.094e-05,2]
[419235094,1775026702803,10000.01,8.094e-05,2]
[419235095,1775026702826,10000.01,8.094e-05,2]
[419235096,1775026702848,10000.01,8.094e-05,2]
[419235097,1775026702870,10000.01,8.094e-05,2]
[419235098,1775026702892,10000.01,8.094e-05,2]
[419235099,1775026702913,10000.01,8.094e-05,2]
[419235100,1775026702936,10000.01,8.094e-05,2]
[419235101,1775026702968,103630.77,8.094e-05,2]
[419235102,1775026724019,2240.87,7.923e-05,2]
[419235103,1775026724501,2759.14,7.963e-05,2]
[419235104,1775026724523,40.86,7.963e-05,2]
[419235105,1775026725026,2124.29,8.025e-05,2]
[419235106,1775026725539,2222.35,8.072e-05,2]
[419235107,1775026726074,612.51,8.186e-05,2]
[419235108,1775026726096,1372.07,8.186e-05,2]
[419235109,1775026726591,1823.58,8.25e-05,2]
[419235110,1775026727108,1804.36,8.33e-05,2]
[419235111,1775026727130,220.53,8.33e-05,2]
[419235112,1775026727628,2100.0,8.367e-05,2]
[419235113,1775026728143,1900.0,8.508e-05,2]
[419235114,1775026728708,2120.0,8.49e-05,2]
[419235115,1775026796056,1380.0,8.226e-05,2]
[419235116,1775026796586,2893.76,8.507e-05,2]
[419235117,1775026808148,1749.705226,7.945e-05,2]
[419235118,1775026836987,-273.0,8.591e-05,2]
[419235119,1775026837009,-150.0,8.591e-05,2]
[419235120,1775026837030,-193.0,8.591e-05,2]
[419235121,1775026837053,-150.0,8.591e-05,2]
[419235122,1775026837075,-228.63481586,8.591e-05,2]
[419235123,1775026837097,-5.36518414,8.591e-05,2]
[419235124,1775026837958,-144.63481586,8.591e-05,2]
[419235125,1775026837981,-447.229905,8.598e-05,2]
[419235126,1775026838004,-408.13527914,8.605e-05,2]
[419235127,1775026838163,-1000.0,8.605e-05,2]
[419235128,1775026838480,-1000.0,8.605e-05,2]
[419235129,1775026839149,-22.73472086,8.605e-05,2]
[419235130,1775026839172,-150.0,8.605e-05,2]
[419235131,1775026839194,-194.61263594,8.621e-05,2]
[419235132,1775026839216,-250.0,8.641e-05,2]
[419235133,1775026839237,-300.0,8.677e-05,2]
[419235134,1775026839260,-82.6526432,8.677e-05,2]
[419235135,1775026839390,-1000.0,8.677e-05,2]
[419235136,1775026839654,-117.3473568,8.677e-05,2]
[419235137,1775026839676,-300.0,8.677e-05,2]
[419235138,1775026839699,-582.6526432,8.678e-05,2]
[419235139,1775026840020,-1000.0,8.678e-05,2]
[419235140,1775026840490,-1000.0,8.678e-05,2]
[419235141,1775026840795,-1000.0,8.678e-05,2]
[419235142,1775026841190,-1000.0,8.678e-05,2]
[419235143,1775026841742,-417.3473568,8.678e-05,2]
[419235144,1775026841763,-193.0,8.678e-05,2]
[419235145,1775026842049,389.6526432,8.241e-05,2]
[419235146,1775026842071,170.8773568,8.241e-05,2]
[419235147,1775026861898,810.0,7.73e-05,2]
[419235148,1775026862429,474.78,8.376e-05,2]
[419235149,1775026888879,339.42,7.914e-05,2]
[419235150,1775026909290,1231.89,8.307e-05,2]
[419235151,1775026910213,806.203172,8.668e-05,2]
[419235152,1775026917445,-250.0,8.712e-05,2]
[419235153,1775026917469,-750.0,8.731e-05,2]
[419235154,1775026924531,823.92,8.049e-05,2]
[419235155,1775026941145,-1000.0,8.731e-05,2]
[419235156,1775026942782,-550.0,8.731e-05,2]
[419235157,1775026987188,500.0,7.85e-05,2]
[419235158,1775026987738,611.65,8.503e-05,2]
[419235159,1775027023507,4253.15,7.905e-05,2]
[419235160,1775027138119,-5000.0,8.711e-05,2]
[419235161,1775027151055,0.01,8.667e-05,2]
[419235162,1775027151077,193.786828,8.667e-05,2]
[419235163,1775027169592,-300.0,8.732e-05,2]
[419235164,1775027172451,974.05,8.42e-05,2]
[419235165,1775027238668,1005.29,7.935e-05,2]
[419235166,1775027239178,1300.0,8.166e-05,2]
[419235167,1775027239686,1300.0,8.343e-05,2]
[419235168,1775027240208,1210.42,8.499e-05,2]
[419235169,1775027240726,732.3,8.728e-05,2]
[419235172,1775027284240,-500.0,8.733e-05,2]
[419235173,1775027284263,-183.48515266,8.733e-05,2]
[419235174,1775027284581,316.51484734,3.919e-05,2]
[419235175,1775027284605,835.99515266,3.919e-05,2]
[419235176,1775027284777,1152.51,4.125e-05,2]
[419235177,1775027284997,1152.51,4.331e-05,2]
[419235178,1775027285192,1152.51,4.537e-05,2]
[419235179,1775027285397,158.47484734,4.744e-05,2]
[419235180,1775027285420,994.03515266,4.744e-05,2]
[419235181,1775027285614,1000.0,4.95e-05,2]
[419235182,1775027285637,152.51,4.95e-05,2]
[419235183,1775027285811,1152.51,5.156e-05,2]
[419235184,1775027286006,1152.51,5.362e-05,2]
[419235185,1775027286186,250.0,4.764e-05,2]
[419235186,1775027286217,1152.51,5.569e-05,2]
[419235187,1775027286389,1152.51,5.775e-05,2]
[419235188,1775027286585,1000.0,5.981e-05,2]
[419235189,1775027286609,152.51,5.981e-05,2]
[419235190,1775027286780,1152.51,6.187e-05,2]
[419235191,1775027286985,1152.51,6.394e-05,2]
[419235192,1775027287395,1152.51,6.6e-05,2]
[419235193,1775027287590,1000.0,6.806e-05,2]
[419235194,1775027287615,152.51,6.806e-05,2]
[419235195,1775027287792,230.87484734,7.012e-05,2]
[419235196,1775027287816,921.63515266,7.012e-05,2]
[419235197,1775027287987,1152.51,7.219e-05,2]
[419235198,1775027288195,1152.51,7.425e-05,2]
[419235199,1775027288393,1152.51,7.631e-05,2]
[419235200,1775027288615,1000.0,7.837e-05,2]
[419235201,1775027288639,152.51,7.837e-05,2]
[419235202,1775027298832,-6616.72,8.74e-05,2]
[419235203,1775027298865,-10000.01,8.74e-05,2]
[419235204,1775027298958,-10000.01,8.74e-05,2]
[419235205,1775027301032,-1000.0,8.74e-05,2]
[419235206,1775027301069,-10000.01,8.74e-05,2]
[419235207,1775027302586,-1554.87651954,8.74e-05,2]
[419235208,1775027302864,-1000.0,8.74e-05,2]
[419235209,1775027308384,888.73,7.995e-05,2]
[419235210,1775027308910,640.0,8.14e-05,2]
[419235211,1775027309436,800.0,8.354e-05,2]
[419235212,1775027309956,810.0,8.648e-05,2]
[419235215,1775027333929,-580.0,8.74e-05,2]
[419235216,1775027334472,10000.01,8.65e-05,2]
[419235217,1775027334497,10000.01,8.65e-05,2]
[419235218,1775027334520,10000.01,8.65e-05,2]
[419235219,1775027334544,10000.01,8.65e-05,2]
[419235220,1775027334568,10000.01,8.65e-05,2]
[419235221,1775027334594,10000.01,8.65e-05,2]
[419235222,1775027334617,10000.01,8.65e-05,2]
[419235223,1775027334641,10000.01,8.65e-05,2]
[419235224,1775027334664,10000.01,8.65e-05,2]
[419235225,1775027355275,-300.0,8.649e-05,2]
[419235226,1775027355298,-300.0,8.649e-05,2]
[419235227,1775027355321,-150.0,8.649e-05,2]
[419235228,1775027355344,-1250.0,8.65e-05,2]
[419235229,1775027356445,-2000.0,8.65e-05,2]
[419235230,1775027357268,-2000.0,8.65e-05,2]
[419235231,1775027359433,-2000.0,8.65e-05,2]
[419235232,1775027360473,-2000.0,8.65e-05,2]
[419235233,1775027361386,-2000.0,8.65e-05,2]
[419235234,1775027362279,-2000.0,8.65e-05,2]
[419235235,1775027363185,-2000.0,8.65e-05,2]
[419235236,1775027364074,-2000.0,8.65e-05,2]
[419235237,1775027365012,-2000.0,8.65e-05,2]
[419235238,1775027366642,-2000.0,8.65e-05,2]
[419235239,1775027367567,-2000.0,8.65e-05,2]
[419235240,1775027368607,-2000.0,8.65e-05,2]
[419235241,1775027370841,-2000.0,8.65e-05,2]
[419235242,1775027371100,260.2,7.826e-05,2]